Cogmind - Beta 13 @@@ ROGUE MODE // 2024.04.24 @ 20:00:11 Player: Sherlockkat Result: Self-destructed Performance ------------- Evolutions (3) 1500 Regions Visited (5) 1000 Robots Destroyed (37) 185 Value Destroyed (1179) 1179 Prototype IDs (1) 20 Alien Tech Used (0) 0 Bonus (0) 0 TOTAL SCORE: 3884 Bonus ------- None Cogmind --------- Core Integrity 598/700 Matter 191/300 Energy 180/180 System Corruption 5% Temperature Cool (28) Movement Treading (160) Location -7/Factory Parts ------- > --- POWER (1) -------- Meta Core > --- PROPULSION (3) --- Light Treads Light Treads > --- UTILITY (7) ------ Small Storage Unit Advanced Terrain Scan Processor Makeshift Light Armor Plating System Shield > --- WEAPON (2) ------- Assault Rifle > --- INVENTORY (8) ---- Subdweller Power Source Cargo Storage Unit Kinecellerator Improved EM Pulse Cannon Light Assault Rifle Grenade Launcher Ripper Peak State ------------ > --- POWER ------------ Meta Core > --- PROPULSION ------- Light Treads Light Treads Spiked Treads > --- UTILITY ---------- Armored Scrap Engine Small Storage Unit Advanced Terrain Scan Processor Makeshift Light Armor Plating Scrap Shield System Shield > --- WEAPON ----------- Subdweller Laser Assault Rifle Battle Cannon > --- INVENTORY -------- Subdweller Power Source Small Laser Light Assault Rifle Grenade Launcher Ripper [Rating: 56] Favorites ----------- Power Meta Core Engine Light Ion Engine Power Core Meta Core Propulsion Light Treads Treads Light Treads Utility Small Storage Unit Device Subdweller Optics Storage Small Storage Unit Processor Advanced Terrain Scan Processor Hackware System Shield Protection Scrap Shield Weapon Assault Rifle Energy Gun Subdweller Laser Energy Cannon Subdweller Beam Cannon Ballistic Gun Assault Rifle Ballistic Cannon Battle Cannon Launcher Grenade Launcher Special Weapon Multitool Build | -11 -10 -10 -10 -9 -7 ------- Run | Yrd Mat Min Sub Rec Fac Slots Evolved 6 | . . . . . 6 Power . | . . . . . . Propulsion 1 | . . . . . 1 Utility 5 | . . . . . 5 Weapon . | . . . . . . Parts Attached 35 | 6 . 1 15 2 11 Power 4 | 1 . . 3 . . Engine 3 | 1 . . 2 . . Core 1 | . . . 1 . . Reactor . | . . . . . . Propulsion 8 | 2 . . 1 2 3 Treads 8 | 2 . . 1 2 3 Leg . | . . . . . . Wheel . | . . . . . . Hover . | . . . . . . Flight . | . . . . . . Utility 12 | 1 . . 4 . 7 Device 4 | . . . 2 . 2 Storage 4 | 1 . . 1 . 2 Processor 1 | . . . . . 1 Hackware 1 | . . . . . 1 Protection 2 | . . . 1 . 1 Artifact . | . . . . . . Weapon 11 | 2 . 1 7 . 1 Energy Gun 3 | 1 . . 2 . . Energy Cannon 3 | . . . 2 . 1 Ballistic Gun 2 | 1 . . 1 . . Ballistic Cannon 1 | . . . 1 . . Launcher 1 | . . 1 . . . Special Weapon 1 | . . . 1 . . Impact Weapon . | . . . . . . Slashing Weapon . | . . . . . . Piercing Weapon . | . . . . . . Special Melee Weapon . | . . . . . . Unidentified Prototypes 1 | . . . 1 . . Corrupted Parts 1 | . . . . . 1 System Corruption 1 | . . . . . 1 Parts Lost 5 | . . . 1 . 4 Power 1 | . . . 1 . . Propulsion 2 | . . . . . 2 Utility 1 | . . . . . 1 Weapon 1 | . . . . . 1 Highest Loss Streak 3 | . . . 1 . 3 To Critical Strikes . | . . . . . . Average Slot Usage (%) 85 | . 85 85 90 90 67 Engine 4 | . 14 14 5 . . Core 5 | . . . 5 10 6 Treads 26 | . 28 28 29 30 17 Device 2 | . . . 2 . 2 Storage 9 | . 14 14 9 10 6 Protection 7 | . . . 7 10 7 Energy Gun 10 | . 14 14 11 10 4 Energy Cannon 1 | . . . 2 . 1 Ballistic Gun 7 | . 14 7 7 10 6 Ballistic Cannon 5 | . . . 5 10 6 Launcher 1 | . . 6 1 . . Naked Turns . | . . . . . . Heaviest Build 162 | 11 11 12 38 38 162 Greatest Support 80 | 40 40 40 60 60 80 Greatest Overweight (x) 2 | . . . . . 2 Average Overweight (x) . | . . . . . . Largest Inventory Capacity 30 | 8 8 8 8 8 30 Average Capacity 8 | 6 8 8 7 8 13 Most Carried 8 | 4 6 6 8 8 8 Average Carried 6 | 1 5 6 6 7 6 Final Capacity 8 | 8 8 8 8 8 8 Final Carried 8 | 4 6 6 8 8 8 Scrap Engine Consumption 10 | . . . . . 10 Class Distribution -------------------- 57% | Tank 37% | Mutant Dominant Class ---------------- Mutant | -10/Materials Mutant | -10/Mines Tank | -10/Subcaves Tank | -9/Recycling Tank | -7/Factory Resources | -11 -10 -10 -10 -9 -7 ----------- Run | Yrd Mat Min Sub Rec Fac Matter Collected 1006 | 122 . 32 555 50 247 Remotely . | . . . . . . Salvage Created 1352 | . 34 32 693 256 337 Parts 82 | . 2 6 40 16 18 Haulers Intercepted 1 | . . . . . 1 Recyclers Shooed 2 | . . . . . 2 Parts Field Recycled . | . . . . . . Retrieved Matter . | . . . . . . Parts Self-Destructed 16 | . . . 16 . . Prevented . | . . . . . . Kills | -11 -10 -10 -10 -9 -7 ------- Run | Yrd Mat Min Sub Rec Fac Combat Hostiles Destroyed 26 | . 2 . 15 2 7 Guns 16 | . 2 . 7 2 5 Cannons 6 | . . . 4 . 2 AOE 4 | . . . 4 . . Classes Destroyed 13 | . 1 2 6 1 3 Worker 2 | . . . . . 2 Builder 3 | . . 1 . . 2 Tunneler 1 | . . 1 . . . Hauler 1 | . . . . . 1 Recycler 2 | . . . . 2 . Turret 2 | . . . 2 . . Swarmer 3 | . 2 . . . 1 Grunt 7 | . . . 2 . 5 Sentry 3 | . . . 1 2 . Programmer 1 | . . . . . 1 Artisan 1 | . . . 1 . . Cobbler 2 | . . . 2 . . Subdweller 12 | . . . 12 . . Best Kill Streak 4 | . 2 2 4 2 3 Combat Bots Only 4 | . 2 . 4 1 2 Max Kills in Single Turn 2 | . 1 2 2 1 2 Gunslinging . | . . . . . . Exploded 2 | . . . 2 . . Melee . | . . . . . . Uniques/NPCs Destroyed . | . . . . . . Combat | -11 -10 -10 -10 -9 -7 -------- Run | Yrd Mat Min Sub Rec Fac Hostile Shots Fired 156 | . 12 . 81 2 61 Missed 39 | . 3 . 22 1 13 Damage Taken 2172 | . 86 . 900 12 1174 Core 235 | . 8 . 125 . 102 Absorbed by Shields . | . . . . . . Core Remaining (%) 73 | 100 . . . 46 . Volleys Fired 108 | . 7 4 58 5 34 Largest 3 | . 2 2 3 3 3 Hottest 128 | . 60 70 120 119 128 Shots Fired 211 | . 14 8 95 15 79 Gun 118 | . 14 6 44 10 44 Cannon 84 | . . . 44 5 35 Launcher 9 | . . 2 7 . . Special . | . . . . . . Kinetic 126 | . 7 2 43 10 64 Thermal 73 | . 7 4 45 5 12 Explosive 9 | . . 2 7 . . Electromagnetic 3 | . . . . . 3 Robot Hit Streak 18 | . 7 1 18 8 7 Robot Miss Streak 3 | . 3 2 2 1 2 Penetration Max . | . . . . . . Secondary Targets 2 | . . . 2 . . Max Gunslinging Chain 1 | . . . 1 . . Shots Hit Robots 130 | . 9 1 62 8 50 Core Hits 69 | . 2 4 34 6 23 Critical Kills 2 | . . . 1 . 1 Critical Parts Destroyed . | . . . . . . Critical Strikes 5 | . . . 2 . 3 Destroy 2 | . . . 1 . 1 Blast 3 | . . . 1 . 2 Melee Attacks . | . . . . . . Impact . | . . . . . . Slashing . | . . . . . . Piercing . | . . . . . . Sneak Attacks . | . . . . . . Combat Hostiles . | . . . . . . Follow-up Attacks . | . . . . . . Damage Inflicted 3146 | . 87 127 1527 133 1272 Guns 1184 | . 87 13 488 116 480 Cannons 1136 | . . . 647 17 472 Explosions 826 | . . 114 392 . 320 Melee . | . . . . . . Ramming . | . . . . . . Kinetic 1239 | . 40 13 397 54 735 Thermal 1020 | . 47 . 738 79 156 Explosive 826 | . . 114 392 . 320 Electromagnetic 61 | . . . . . 61 Impact . | . . . . . . Slashing . | . . . . . . Piercing . | . . . . . . Highest Corruption 5 | . . . . . 5 Average Corruption 4 | . . . . . 4 Corruption Purged . | . . . . . . Corruption Blocked . | . . . . . . Effects 4 | . . . . . 4 Message Errors 1 | . . . . . 1 Parts Rejected 1 | . . . . . 1 Data Loss (minor) 2 | . . . . . 2 Overload Shots . | . . . . . . Overflow Damage 33 | . . . 17 . 16 Projectiles 21 | . . . 17 . 4 Explosions 12 | . . . . . 12 Melee . | . . . . . . Knockbacks 13 | . . . 5 . 8 Impact . | . . . . . . Kinetic 12 | . . . 5 . 7 Secondary 1 | . . . . . 1 Self-Inflicted Damage . | . . . . . . Shots . | . . . . . . Rammed . | . . . . . . Targets Rammed . | . . . . . . Kicked . | . . . . . . Crushed . | . . . . . . Highest Temperature 441 | . . 9 34 114 441 Average Temperature 87 | . . 6 10 41 147 Received Heat Transfer 516 | . 12 . 198 . 306 Effects 3 | . . . . . 3 Interference 3 | . . . . . 3 Siege Activations . | . . . . . . Robots Corrupted . | . . . . . . Combat Hostiles . | . . . . . . Parts Fried 1 | . . . . . 1 Impact Corruptions . | . . . . . . Robots Melted . | . . . . . . Combat Hostiles . | . . . . . . Parts Melted 3 | . . . 3 . . Heat Transferred 1405 | . 100 . 1005 100 200 Parts Sabotaged . | . . . . . . Parts Stolen . | . . . . . . Parts Stripped . | . . . . . . Power Chain Reactions . | . . . . . . Alert | -11 -10 -10 -10 -9 -7 ------- Run | Yrd Mat Min Sub Rec Fac Peak Influence 229 | . 65 40 . 229 205 Initial 148 | . . 25 . 148 95 Average 106 | . 15 31 . 184 120 Maximum Alert Level 1 | . . . . 1 1 Low Security (%) 89 | 100 100 100 . 54 97 Level 1 10 | . . . . 45 2 Level 2 . | . . . . . . Level 3 . | . . . . . . Level 4 . | . . . . . . Level 5 . | . . . . . . High Security . | . . . . . . Max Security . | . . . . . . Squads Dispatched 1 | . . . . . 1 Investigation . | . . . . . . Extermination 1 | . . . . . 1 Reinforcement . | . . . . . . Assault . | . . . . . . Garrison . | . . . . . . Intercept . | . . . . . . Searches Triggered . | . . . . . . Construction Impeded . | . . . . . . Haulers Reinforced . | . . . . . . Active Scanning Responses . | . . . . . . Cargo Convoy Interrupts . | . . . . . . Stealth | -11 -10 -10 -10 -9 -7 --------- Run | Yrd Mat Min Sub Rec Fac Distress Signals 3 | . 3 . . . . Communications Jammed . | . . . . . . Distress Signals . | . . . . . . Times Spotted 54 | . 8 . 33 1 12 Peak Tracking Total 4 | . 4 . 3 1 4 Tactical Retreats 4 | . . . 2 . 2 Traps | -11 -10 -10 -10 -9 -7 ------- Run | Yrd Mat Min Sub Rec Fac Traps Triggered 4 | . . . 3 . 1 Indirectly . | . . . . . . Trap Hack Attempts . | . . . . . . Triggered . | . . . . . . Disarmed . | . . . . . . Reprogrammed . | . . . . . . Reused . | . . . . . . Traps Extracted . | . . . . . . Installed . | . . . . . . Triggered . | . . . . . . Machines | -11 -10 -10 -10 -9 -7 ---------- Run | Yrd Mat Min Sub Rec Fac Machines Disabled 4 | . . . . 1 3 Max in Single Turn 2 | . . . . 1 2 Machines Repaired . | . . . . . . Machines Dismantled . | . . . . . . Machines Sabotaged . | . . . . . . Overloaded Fab Kills . | . . . . . . Hacking | -11 -10 -10 -10 -9 -7 --------- Run | Yrd Mat Min Sub Rec Fac Machines Accessed 8 | . 3 . 1 3 1 Terminals 7 | . 3 . . 3 1 Fabricators . | . . . . . . Repair Stations . | . . . . . . Recycling Units . | . . . . . . Scanalyzers . | . . . . . . Garrison Access . | . . . . . . Total Hacks 13 | . 5 . 2 5 1 Successful 8 | . 1 . 2 4 1 Failed 5 | . 4 . . 1 . Catastrophic 1 | . 1 . . . . Database Lockouts . | . . . . . . Manual 5 | . 2 . . 3 . Terminals 11 | . 5 . . 5 1 Fabricators . | . . . . . . Repair Stations . | . . . . . . Recycling Units . | . . . . . . Scanalyzers . | . . . . . . Garrison Access . | . . . . . . Terminal Hacks 8 | . 1 . 2 4 1 Record 3 | . . . 2 1 . Open DSF 1 | . . . . . 1 Level Access Points 1 | . . . . 1 . Zone Layout 3 | . 1 . . 2 . Fabricator Hacks . | . . . . . . Repair Station Hacks . | . . . . . . Recycling Unit Hacks . | . . . . . . Scanalyzer . | . . . . . . Garrison Access Hacks . | . . . . . . Unauthorized Hacks . | . . . . . . Terminals . | . . . . . . Fabricators . | . . . . . . Repair Stations . | . . . . . . Recycling Units . | . . . . . . Scanalyzers . | . . . . . . Garrison Access . | . . . . . . Data Cores Recovered . | . . . . . . Used . | . . . . . . Hacking Detections 4 | . 2 . . 2 . Full Trace Events . | . . . . . . Feedback Events . | . . . . . . Feedback Blocked . | . . . . . . Robot Schematics Acquired . | . . . . . . Robots Built . | . . . . . . Authchips . | . . . . . . Time . | . . . . . . Total Robot Build Rating . | . . . . . . Part Schematics Acquired . | . . . . . . Parts Built . | . . . . . . Authchips . | . . . . . . Time . | . . . . . . Total Part Build Rating . | . . . . . . Parts Repaired . | . . . . . . Time . | . . . . . . Parts Recycled . | . . . . . . Recycled Matter . | . . . . . . Retrieved Matter . | . . . . . . Retrieved Components . | . . . . . . Parts Scanalyzed . | . . . . . . Part Schematics Acquired . | . . . . . . Parts Damaged . | . . . . . . Bothacking | -11 -10 -10 -10 -9 -7 ------------ Run | Yrd Mat Min Sub Rec Fac Used RIF Installer . | . . . . . . Robots Hacked . | . . . . . . Non-combat . | . . . . . . Combat . | . . . . . . Robot Hacks Applied . | . . . . . . Relay Couplers Released . | . . . . . . Fabnet Peak Effective % . | . . . . . . Robots Rewired . | . . . . . . Allies Hacked . | . . . . . . Hacks Repelled . | . . . . . . Allies | -11 -10 -10 -10 -9 -7 -------- Run | Yrd Mat Min Sub Rec Fac Total Allies . | . . . . . . Largest Group . | . . . . . . Highest-Rated Group . | . . . . . . Highest-Rated Ally . | . . . . . . Total Orders . | . . . . . . Ally Attacks . | . . . . . . Total Damage . | . . . . . . Kills . | . . . . . . Allies Corrupted . | . . . . . . Allies Melted . | . . . . . . Intel | -11 -10 -10 -10 -9 -7 ------- Run | Yrd Mat Min Sub Rec Fac Robot Analysis Total . | . . . . . . Derelict Logs Recovered 3 | . . 2 1 . . Drone Launches . | . . . . . . Drone Recoveries . | . . . . . . Exploration | -11 -10 -10 -10 -9 -7 ------------- Run | Yrd Mat Min Sub Rec Fac Turns Passed 4440 | 84 233 84 2804 309 926 Spaces Moved 2417 | 49 129 45 1616 181 397 Core 6 | 6 . . . . . Treads 2411 | 43 129 45 1616 181 397 Legs . | . . . . . . Wheels . | . . . . . . Hover . | . . . . . . Flight . | . . . . . . Fastest Speed 50 | 50 160 160 160 160 160 Average Speed 164 | 146 160 160 160 160 187 Slowest Speed 332 | 160 160 160 160 160 332 Overloaded Moves . | . . . . . . Propulsion Burnouts . | . . . . . . Robots Hopped . | . . . . . . Cave-ins Triggered . | . . . . . . Exploration Rate (%) 33 | 3 30 14 71 67 15 Regions Visited 5 Branch Regions 3 Pre-discovered Areas 2 | . . . 2 . . Known Exits Taken 2 | . . . 1 1 . Unknown Exits Taken 3 | 1 1 1 . . . Scrap Searched 1 | . . . 1 . . Spaces Dug . | . . . . . . Terrain Destroyed 63 | . . 9 36 1 17 Melee . | . . . . . . Projectile 4 | . . . 1 1 2 AOE 59 | . . 9 35 . 15 Terrain Rammed . | . . . . . . Walls Destroyed . | . . . . . . Machines Disabled . | . . . . . . Actions | -11 -10 -10 -10 -9 -7 --------- Run | Yrd Mat Min Sub Rec Fac Total 2700 | 58 142 49 1747 192 512 Wait 81 | . 5 . 20 . 56 Move 2412 | 48 128 44 1615 180 397 Hop . | . . . . . . Pick Up 26 | 4 2 . 14 1 5 Fast Attach 16 | 6 . . 6 . 4 Attach 11 | . . . 5 . 6 Detach 6 | . . . 1 . 5 Swap 8 | . . 1 4 2 1 Drop 22 | . . . 14 4 4 Fire 108 | . 7 4 58 5 34 Melee . | . . . . . . Ram . | . . . . . . Kick . | . . . . . . Crush . | . . . . . . Escape Stasis . | . . . . . . Rewire . | . . . . . . Trap . | . . . . . . Miscellaneous 10 | . . . 10 . . Route ------- -11/Scrapyard -10/Materials -10/Mines (discovered 2 exits: [*Mat] / *Sub) -10/Subcaves (discovered 3 exits: [*Mat x2] / *Rec) -9/Recycling -7/Factory (discovered 1 exit: [*Low]) History --------- Turn | Location | Event 4 | -11/Scrapyard | Discovered new exit (range 15) 85 | -11/Scrapyard | Entered Materials 297 | -10/Materials | Discovered new exit (range 12) 314 | -10/Materials | Build established: Mutant 318 | -10/Materials | Entered Mines 331 | -10/Mines | Learned Materials terminal intel 336 | -10/Mines | Discovered new exit (range 13) 345 | -10/Mines | Learned 2 Materials zone layouts 390 | -10/Mines | Discovered new exit (range 8) 402 | -10/Mines | Entered Subcaves 415 | -10/Subcaves | Ambushed by Subdweller buried in earth 541 | -10/Subcaves | Learned location of Zion (-6) 541 | -10/Subcaves | Met a Zionite searching for "candidates" 590 | -10/Subcaves | Shifting Twisted Machinery released Spk. Treads 591 | -10/Subcaves | Shifting Twisted Machinery released Sub. Beam Cannon 708 | -10/Subcaves | Discovered new exit (range 13) 724 | -10/Subcaves | Shifting Twisted Machinery released Sub. Laser 732 | -10/Subcaves | Shifting Twisted Machinery released Mak. Flight Unit 838 | -10/Subcaves | Ambushed by angry Subdweller bent on revenge 944 | -10/Subcaves | A swath of the cavern ceiling suddenly collapsed 1502 | -10/Subcaves | A Subdweller sparked back to life 1533 | -10/Subcaves | Found Prototype Power Core 1533 | -10/Subcaves | Identified Meta Core 1534 | -10/Subcaves | Attached Meta Core, gained temporary slots: Propulsion, Utility, Weapon 1707 | -10/Subcaves | Ambushed by Subdwellers from Twisted Machinery 1831 | -10/Subcaves | Build established: Tank 2466 | -10/Subcaves | Identified exit to Recycling 2485 | -10/Subcaves | Discovered new exit (range 10) 2529 | -10/Subcaves | A swath of the cavern ceiling suddenly collapsed 2702 | -10/Subcaves | Visited Clippyterm 2707 | -10/Subcaves | Learned location of Deep Caves (-6) 3063 | -10/Subcaves | Core integrity fell below 50% 3148 | -10/Subcaves | Shifting Twisted Machinery released Mak. Light Armor Plating 3206 | -10/Subcaves | Entered Recycling 3214 | -9/Recycling | Found Scrap Engine 3274 | -9/Recycling | Identified exit to Factory 3515 | -9/Recycling | Entered Factory 3515 | -7/Factory | Evolved 6 slots: Propulsion x1, Utility x5 3967 | -7/Factory | Discovered new exit (range 7) 4441 | -7/Factory | Self-destructed Last Messages --------------- 04389_ Acquired Lgt. Treads. 04392_ Acquired Cargo Storage Unit. 04395_ K-01 Serf cleans the Megafabricator. 04404_ Connecting with DSF Access... 04421_ K-01 Serf cleans the Fusion Modulator. 04427_ System corrupted: Component data lost. 04428_ K-01 Serf cleans the Fusion Modulator. 04440_ Triggered Proton Bomb Trap. 04440_ A bubble of electromagnetic force engulfs the area. 04440_ Fusion Modulator explodes. 04440_ Battle Cannon destroyed. 04440_ Fusion Modulator explodes. 04440_ Nuclear Reactor explodes. 04440_ Fusion Modulator explodes. 04440_ Lgt. Treads destroyed. 04440_ Terminal disabled. 04440_ Spk. Treads destroyed. 04441_ Temporary Propulsion slot lost. 04441_ Temporary Weapon slot lost. Map ----- +----------------------------------------------------+ | ###?#"""""#?? ???????????????????????????????? | | ###""T""#####+############?????????????????????? | | ^ #???????????????????? | | #???????????????????? | | !| ^ #???????????????????? | | !!| ^ #???????????????????? | | !| % ^ #???????????????????? | | """"" !!! ^ #???????????????????? | | """"" % = ^ #???????????????????? | | """"" ! ####### ###?????????????????????? | | """"" ! ####### #???????????????????????? | | ?"""" %= #[ #t????????????????????????? | | ??""" | # """ # ##### ????????????????? | | % %+ "Y" # ??????????????? | | " """"""" #% # ????????????? | | """"""""" ####### k ????????????? | | """"""""" #?# ; ????????????? | | """"""""" #?# ; ###???????????? | | """"""""" ### ; ; ???????????? | | !! """"""""" T## ; ; "???????????? | | !! ## ; ""??????????? | | ! ## ; ?????????? | | #?# ""??????????? | | #?# ; ""??????????? | | ?########### ### ; ""??????????? | | ???????????# @ ????????? | | ???????????# #????????????? | | ???????????# k #????????????? | | ???????????# #????????????? | | ???????????# #????????????? | | ???????????# ##????????????? | | ???????????# #?????????????? | | ???????????#######+######### ## ###?????????????? | | ???????????????? ?????????###? #???????????????? | | ??????????????? ???????????????#???????????????? | | ?????????????""" ????????????????????????????????? | | ?????????????"""?????????????????????????????????? | | ?????????????""??????????????????????????????????? | | ?????????????????????????????????????????????????? | | ?????????????????????????????????????????????????? | | ?????????????????????????????????????????????????? | | ?????????????????????????????????????????????????? | | ?????????????????????????????????????????????????? | | ?????????????????????????????????????????????????? | | ?????????????????????????????????????????????????? | | ?????????????????????????????????????????????????? | | ?????????????????????????????????????????????????? | | ?????????????????????????????????????????????????? | | ?????????????????????????????????????????????????? | | ?????????????????????????????????????????????????? | +----------------------------------------------------+ Best States ------------- Heat Dissipation 34 Energy Generation 17 Energy Capacity 250 Matter Stores 300 Matter Capacity 300 Sight Range 21 Terrain Scan Density 210 Armor Coverage 900 Evasion (%) 40 Recoil Reduction 4 Kinecelleration 30 Defensive Hacking 10 Item Schematics ----------------- None Robot Schematics ------------------ None Fabricated ------------ Nothing Alien Tech Used ----------------- None Achievements -------------- None Challenges ------------ None Game ------ Seed FrostCatalystDisintegrator Manual? 0 Play Time 00:32:50 Cumulative 384.0 hours Start 2024.04.24 @ 19:14:22 End 2024.04.24 @ 20:00:11 Sessions 3 Manual Loads 0 Difficulty Rogue Special Mode None Game No. 446 Rogue 446 Adventurer 0 Explorer 0 Win Type - Total 32 Types 21/3/7/1/0/0/0/0/0 Lore% 69 Gallery% 78 Achievement% 59 Wizard Run 0 Options --------- Layout 1 ASCII 1 Keyboard 1 Movement Numpad Keybinds 0 Fullscreen 1 Font 24/Smallcaps Map View 50x35 Zoom Use 0% Tactical HUD 1 Map Filters NONE Filters NONE Steam 1 RUN: de501119-e997-4051-88ca-958af4f01ec8